Cogmind - Beta 15 *** ADVENTURER MODE // 2025.10.16 @ 21:33:19 Player: Roxy Result: Destroyed by S-27 Virus with Autogun Performance ------------- Evolutions (5) 2500 Regions Visited (11) 2200 Robots Destroyed (49) 245 Value Destroyed (1687) 1687 Prototype IDs (4) 80 Alien Tech Used (0) 0 Bonus (1146) 1146 TOTAL SCORE: 7858 Bonus ------- Follower Combat Kills 146 Entered Garrisons 200 Entered DSFs 500 Aligned with FarCom 300 Cogmind --------- Core Integrity 0/1000 Matter 300/300 Energy 100/100 System Corruption 11% Temperature Cool (0) Movement Core (50) Location -5/Upper Caves Parts ------- > --- POWER (2) -------- (None) > --- PROPULSION (5) --- (None) > --- UTILITY (6) ------ Graphene Brace > --- WEAPON (4) ------- (None) > --- INVENTORY (5) ---- Improved Reaction Control System Hacking Suite High-powered Tractor Beam Long-range Proton Cannon Remote Datajack Peak State ------------ > --- POWER ------------ Light Nuclear Core Light Angular Momentum Engine > --- PROPULSION ------- Carbon-fiber Leg Carbon-fiber Leg Flexi-carbon Leg Flexi-carbon Leg Flexi-carbon Leg > --- UTILITY ---------- Advanced Heat Sink Lightpack 2.0 Graphene Brace Hacking Suite > --- WEAPON ----------- Small Laser Gatling Laser Autogun Autogun > --- INVENTORY -------- Nuclear Core Light Angular Momentum Engine Light Fission Core Micro Fission Core Cesium-ion Thruster Xenon Bombardment Thruster Xenon Bombardment Thruster Xenon Bombardment Thruster Xenon Bombardment Thruster Sensor Array Improved Transmission Jammer Hacking Suite Hacking Suite Hacking Suite Hacking Suite Hacking Suite High-powered Tractor Beam EM Pulse Gun Beam Rifle Wave Gun Long-range Proton Cannon Gauss Rifle Remote Datajack Remote Datajack [Rating: 92] Favorites ----------- Power Ion Engine Engine Ion Engine Power Core Nuclear Core Propulsion Aluminum Leg Leg Aluminum Leg Flight Unit Xenon Bombardment Thruster Utility High-capacity Storage Unit Device Sensor Array Storage High-capacity Storage Unit Processor Visual Processing Unit Hackware Hacking Suite Protection Reflective Plating Weapon Light Assault Rifle Energy Gun Gatling Laser Ballistic Gun Light Assault Rifle Build | -11 -10 -10 -10 -9 -8 -7 -7 -6 -6 -5 -5 ------- Run | Yrd Mat Min Exi Min Mat Fac DSF Fac Gar Fac Upp Slots Evolved 10 | . . . . . 4 2 . 2 . 2 . Power 1 | . . . . . . 1 . . . . . Propulsion 3 | . . . . . 1 . . 1 . 1 . Utility 4 | . . . . . 3 . . 1 . . . Weapon 2 | . . . . . . 1 . . . 1 . Parts Attached 67 | 6 7 . . . 15 1 7 4 9 18 . Power 15 | 1 2 . . . 3 1 . . 4 4 . Engine 7 | 1 2 . . . . . . . 1 3 . Core 8 | . . . . . 3 1 . . 3 1 . Reactor . | . . . . . . . . . . . . Propulsion 21 | 2 1 . . . 5 . 4 1 3 5 . Treads . | . . . . . . . . . . . . Leg 17 | 2 1 . . . 5 . 4 1 3 1 . Wheel . | . . . . . . . . . . . . Hover . | . . . . . . . . . . . . Flight 4 | . . . . . . . . . . 4 . Utility 15 | 1 3 . . . 5 . 1 2 1 2 . Device 7 | . 1 . . . 2 . 1 1 1 1 . Storage 3 | 1 1 . . . 1 . . . . . . Processor 2 | . 1 . . . 1 . . . . . . Hackware 2 | . . . . . . . . 1 . 1 . Protection 1 | . . . . . 1 . . . . . . Artifact . | . . . . . . . . . . . . Weapon 16 | 2 1 . . . 2 . 2 1 1 7 . Energy Gun 6 | . . . . . . . 1 . 1 4 . Energy Cannon . | . . . . . . . . . . . . Ballistic Gun 10 | 2 1 . . . 2 . 1 1 . 3 . Ballistic Cannon . | . . . . . . . . . . . . Launcher . | . . . . . . . . . . . . Special Weapon . | . . . . . . . . . . . . Impact Weapon . | . . . . . . . . . . . . Slashing Weapon . | . . . . . . . . . . . . Piercing Weapon . | . . . . . . . . . . . . Special Melee Weapon . | . . . . . . . . . . . . Unidentified Prototypes 2 | . . . . . 1 . . . . 1 . Parts Lost 50 | . 1 . . . 7 . 4 . 8 26 4 Power 12 | . 1 . . . 1 . . . 2 6 2 Propulsion 17 | . . . . . 4 . 2 . 2 7 2 Utility 7 | . . . . . 1 . . . 1 5 . Weapon 14 | . . . . . 1 . 2 . 3 8 . Highest Loss Streak 16 | . 1 . . . 6 . 2 . 7 16 4 To Critical Strikes . | . . . . . . . . . . . . Average Backups 14 | 2 11 15 15 16 16 16 18 18 18 21 4 Power 1 | 1 1 1 1 1 2 1 1 1 1 3 . Propulsion 6 | . 4 8 8 8 5 6 6 5 5 4 . Utility 3 | . 1 2 2 3 2 3 4 7 7 6 2 Weapon 3 | 1 3 4 4 4 4 5 4 4 4 4 1 Tool/Special . | . . . . . . . . . . . . Unused Backups 22 | . . . . . 4 . 8 . . 6 4 Power 2 | . . . . . 1 . 1 . . . . Propulsion 8 | . . . . . 2 . 5 . . 1 . Utility 8 | . . . . . 1 . 1 . . 4 2 Weapon 1 | . . . . . . . . . . . 1 Tool/Special 3 | . . . . . . . 1 . . 1 1 Average Slot Usage (%) 88 | . 96 100 100 100 79 76 77 85 79 80 22 Engine 10 | . 13 14 14 14 2 . . . 1 4 8 Core 2 | . . . . . 6 15 15 13 10 4 . Leg 25 | . 27 28 28 28 26 23 22 26 25 24 . Device 10 | . 6 14 14 14 11 7 7 6 12 10 5 Storage 10 | . 14 14 14 14 9 7 7 6 6 4 . Processor 1 | . 5 . . . 1 7 7 5 . . . Energy Gun 1 | . . . . . . . 4 6 6 9 . Ballistic Gun 21 | . 27 28 28 28 17 15 12 12 8 9 . Peak Build Rating 92 | 6 9 8 11 11 47 49 70 82 86 92 24 Average Rating 27 | 3 8 8 8 11 44 49 58 81 80 84 19 On Entrance 32 | . 6 8 8 11 11 47 49 70 81 79 24 Naked Turns . | . . . . . . . . . . . . Heaviest Build 48 | 11 48 48 48 48 17 23 27 33 33 33 20 Greatest Support 90 | 20 20 20 20 20 30 30 55 70 75 90 12 Greatest Overweight (x) 14 | 1 14 2 2 2 1 . 1 . . 6 4 Average Overweight (x) 1 | . 2 2 2 2 . . . . . . . Largest Inventory Capacity 40 | 8 20 20 20 20 40 40 40 40 40 40 5 Average Capacity 24 | 7 19 20 20 20 40 40 40 40 40 37 5 Most Carried 24 | 6 19 15 18 19 22 16 24 21 22 24 5 Average Carried 14 | 2 11 15 15 18 16 16 18 18 18 20 4 Final Capacity 40 | 8 20 20 20 20 40 40 40 40 40 5 5 Final Carried 22 | 2 15 15 18 19 17 16 22 17 22 4 5 Class Distribution -------------------- 64% | Mutant 13% | Hauler-Skirmisher 9% | Scavenger-Skirmisher 6% | Skirmisher 5% | Hauler-Mutant Dominant Class ---------------- Mutant | -10/Materials Mutant | -10/Mines Mutant | -10/Exiles Skirmisher | -9/Mines Hauler-Skirmisher | -8/Materials Hauler-Skirmisher | -7/Factory Hauler-Mutant | -7/DSF Hauler-Skirmisher | -6/Factory Hauler-Skirmisher | -6/Garrison Scavenger-Skirmisher | -5/Factory Mutant | -5/Upper Caves Resources | -11 -10 -10 -10 -9 -8 -7 -7 -6 -6 -5 -5 ----------- Run | Yrd Mat Min Exi Min Mat Fac DSF Fac Gar Fac Upp Matter Collected 1336 | 198 256 22 . 2 259 . 139 87 141 181 51 Remotely 360 | . . . . . 221 . 139 . . . . Salvage Created 1781 | . 422 . . . 454 . 226 87 271 321 . Parts 123 | . 33 . . . 32 . 17 6 16 19 . Haulers Intercepted . | . . . . . . . . . . . . Recyclers Shooed . | . . . . . . . . . . . . Parts Field Recycled . | . . . . . . . . . . . . Retrieved Matter . | . . . . . . . . . . . . Parts Self-Destructed 4 | . . . . . . . . . . . 4 Prevented . | . . . . . . . . . . . . Kills | -11 -10 -10 -10 -9 -8 -7 -7 -6 -6 -5 -5 ------- Run | Yrd Mat Min Exi Min Mat Fac DSF Fac Gar Fac Upp Combat Hostiles Destroyed 44 | . 14 . . . 11 . 4 4 6 5 . Guns 44 | . 14 . . . 11 . 4 4 6 5 . Classes Destroyed 9 | . 3 . . . 2 . 2 . 1 1 . Watcher 5 | . 3 . . . 1 . . . . 1 . Swarmer 19 | . 9 . . . 4 . . 4 2 . . Grunt 13 | . 5 . . . 4 . . . 2 2 . Brawler 1 | . . . . . 1 . . . . . . Sentry 2 | . . . . . 2 . . . . . . Specialist 3 | . . . . . . . 3 . . . . Hunter 3 | . . . . . . . . . 2 1 . Programmer 2 | . . . . . . . . . . 2 . Heavy 1 | . . . . . . . 1 . . . . Best Kill Streak 6 | . 3 . . . 6 . 2 4 4 2 . Combat Bots Only 5 | . 3 . . . 5 . 2 4 4 2 . Max Kills in Single Turn 2 | . 2 . . . 2 . 1 1 1 1 . Gunslinging 1 | . 1 . . . . . . . . . . Exploded . | . . . . . . . . . . . . Melee . | . . . . . . . . . . . . Uniques/NPCs Destroyed . | . . . . . . . . . . . . Combat | -11 -10 -10 -10 -9 -8 -7 -7 -6 -6 -5 -5 -------- Run | Yrd Mat Min Exi Min Mat Fac DSF Fac Gar Fac Upp Hostile Shots Fired 667 | . 66 . . 1 123 . 54 18 101 199 105 Missed 203 | . 20 . . 1 40 . 13 5 30 55 39 Hits 464 | . 46 . . . 83 . 41 13 71 144 66 Melee 1 | . . . . . 1 . . . . . . Projectile 463 | . 46 . . . 82 . 41 13 71 144 66 AOE 2 | . . . . . . . . . . 2 . Critical Strikes 18 | . 1 . . . 2 . . . 2 8 5 Actively Blocked 15 | . . . . . . . . . 2 8 5 Damage Taken 6059 | . 317 . . . 720 . 785 153 906 2338 840 Core 1453 | . 58 . . . 83 . 148 60 103 432 569 Absorbed by Shields . | . . . . . . . . . . . . Ignored by Resistances 1742 | . 99 . . . 226 . 219 48 250 659 241 Core Remaining (%) 83 | 100 . . . 76 84 . 78 . 80 . . Volleys Fired 141 | . 42 . . 1 46 . 19 5 12 16 . Largest 4 | . 2 . . 2 2 . 3 3 3 4 . Hottest 166 | . 40 . . 40 40 . 125 135 135 166 . Shots Fired 298 | . 81 . . 2 92 . 44 15 22 42 . Gun 298 | . 81 . . 2 92 . 44 15 22 42 . Cannon . | . . . . . . . . . . . . Launcher . | . . . . . . . . . . . . Special . | . . . . . . . . . . . . Kinetic 249 | . 81 . . 2 92 . 36 10 10 18 . Thermal 45 | . . . . . . . 8 5 12 20 . Explosive . | . . . . . . . . . . . . Electromagnetic 4 | . . . . . . . . . . 4 . Robot Hit Streak 29 | . 13 . . . 29 . 14 18 16 26 . Robot Miss Streak 4 | . 2 . . 2 3 . 1 4 2 1 . Penetration Max 1 | . . . . . . . . . . 1 . Secondary Targets 11 | . 5 . . . 1 . . 2 1 2 . Max Gunslinging Chain 1 | . 1 . . . 1 . . 1 1 1 . Shots Hit Robots 245 | . 63 . . . 73 . 39 11 21 38 . Core Hits 132 | . 30 . . . 38 . 16 8 20 20 . Critical Kills . | . . . . . . . . . . . . Critical Parts Destroyed 2 | . 1 . . . . . . . . 1 . Critical Strikes 2 | . 1 . . . . . . . . 1 . Destroy 2 | . 1 . . . . . . . . 1 . Melee Attacks . | . . . . . . . . . . . . Impact . | . . . . . . . . . . . . Slashing . | . . . . . . . . . . . . Piercing . | . . . . . . . . . . . . Sneak Attacks . | . . . . . . . . . . . . Combat Hostiles . | . . . . . . . . . . . . Follow-up Attacks . | . . . . . . . . . . . . Damage Inflicted 3332 | . 618 . . 10 674 . 544 257 445 760 24 Guns 3290 | . 618 . . 10 672 . 544 257 445 744 . Cannons . | . . . . . . . . . . . . Explosions . | . . . . . . . . . . . . Melee . | . . . . . . . . . . . . Ramming 42 | . . . . . 2 . . . . 16 24 Kinetic 2232 | . 618 . . 10 672 . 359 116 138 319 . Thermal 1025 | . . . . . . . 185 141 307 392 . Explosive . | . . . . . . . . . . . . Electromagnetic 33 | . . . . . . . . . . 33 . Impact . | . . . . . . . . . . . . Slashing . | . . . . . . . . . . . . Piercing . | . . . . . . . . . . . . Highest Corruption 11 | . . . . . . . . . . 11 11 Average Corruption 10 | . . . . . . . . . . 9 11 Corruption Purged . | . . . . . . . . . . . . Corruption Blocked . | . . . . . . . . . . . . Effects 25 | . . . . . . . . . . 7 18 Message Errors 2 | . . . . . . . . . . . 2 Matter Fused 10 | . . . . . . . . . . 5 5 Heat Flow Errors 2 | . . . . . . . . . . . 2 Energy Discharges 3 | . . . . . . . . . . . 3 Data Loss (minor) 3 | . . . . . . . . . . . 3 Alerts 1 | . . . . . . . . . . . 1 Misdirections 3 | . . . . . . . . . . 1 2 Weapon Failures 1 | . . . . . . . . . . 1 . Overload Shots . | . . . . . . . . . . . . Overflow Damage . | . . . . . . . . . . . . Projectiles . | . . . . . . . . . . . . Explosions . | . . . . . . . . . . . . Melee . | . . . . . . . . . . . . Knockbacks 1 | . . . . . . . . . . 1 . Impact 1 | . . . . . . . . . . 1 . Kinetic . | . . . . . . . . . . . . Secondary . | . . . . . . . . . . . . Self-Inflicted Damage 16 | . . . . . . . . . . 5 11 Shots . | . . . . . . . . . . . . Rammed 9 | . . . . . . . . . . 4 5 Targets Rammed 12 | . . 1 . . 1 . . . . 5 5 Kicked 3 | . . 1 . . 1 . . . . 1 . Crushed . | . . . . . . . . . . . . Highest Temperature 307 | . 18 . . . 33 . 3 307 300 210 263 Average Temperature 75 | . 7 . . . 5 . 2 156 101 67 119 Received Heat Transfer 915 | . 78 . . . 261 . . . 270 111 195 Siege Activations . | . . . . . . . . . . . . Martial Activations . | . . . . . . . . . . . . Shielding Activations . | . . . . . . . . . . . . Robots Disrupted . | . . . . . . . . . . . . Combat Hostiles . | . . . . . . . . . . . . Robots Corrupted . | . . . . . . . . . . . . Combat Hostiles . | . . . . . . . . . . . . Parts Fried . | . . . . . . . . . . . . Impact Corruptions . | . . . . . . . . . . . . Robots Melted . | . . . . . . . . . . . . Combat Hostiles . | . . . . . . . . . . . . Parts Melted 4 | . . . . . . . 1 . 2 1 . Heat Transferred 2208 | . . . . . . . 425 325 700 758 . Parts Sabotaged . | . . . . . . . . . . . . Parts Stolen . | . . . . . . . . . . . . Parts Stripped . | . . . . . . . . . . . . Power Chain Reactions . | . . . . . . . . . . . . Alert | -11 -10 -10 -10 -9 -8 -7 -7 -6 -6 -5 -5 ------- Run | Yrd Mat Min Exi Min Mat Fac DSF Fac Gar Fac Upp Maximum Alert Level . | . . . . . . . . . . . . Low Security (%) 100 | 100 100 100 . 100 100 100 100 100 100 100 . Level 1 . | . . . . . . . . . . . . Level 2 . | . . . . . . . . . . . . Level 3 . | . . . . . . . . . . . . Level 4 . | . . . . . . . . . . . . Level 5 . | . . . . . . . . . . . . High Security . | . . . . . . . . . . . . Max Security . | . . . . . . . . . . . . Peak Influence 130 | . 120 . . 63 130 33 87 80 118 57 . Initial 53 | . . . . . . 33 22 39 38 53 . Average 17 | . 14 . . 11 40 33 62 16 90 7 . Influence Increases 1593 | . 394 . . 116 455 4 105 92 160 192 75 Destroy 0b10 Robot/C 1080 | . 280 . . 100 320 . 80 80 120 100 . Destroy 0b10 Robot/NC 45 | . 15 . . . 25 . . . . 5 . Destroy Leader 182 | . 56 . . 10 64 . 10 10 10 22 . Allied During Kill 11 | . . . . 6 5 . . . . . . Successful Hack 63 | . 43 . . . 11 4 . 2 . 3 . Select Force Hacks 30 | . . . . . . . . . . 30 . Destroy Structure 2 | . . . . . . . . . . 2 . Lose Combat Pursuer 180 | . . . . . 30 . 15 . 30 30 75 Influence Decreases 1568 | . 394 . . 116 368 54 55 117 104 310 50 Entered New Map 206 | . . . . . . 54 15 48 24 65 . Time Decay 1030 | . 394 . . 116 278 . . 69 . 123 50 Lost Part 312 | . . . . . 70 . 40 . 80 122 . Lost Ally 20 | . . . . . 20 . . . . . . Squads Dispatched 11 | . 1 . . . 2 . 2 . . 6 . Investigation 2 | . 1 . . . . . . . . 1 . Extermination 2 | . . . . . . . . . . 2 . Reinforcement 2 | . . . . . . . 2 . . . . Assault . | . . . . . . . . . . . . Garrison 5 | . . . . . 2 . . . . 3 . Intercept . | . . . . . . . . . . . . Searches Triggered . | . . . . . . . . . . . . Construction Impeded . | . . . . . . . . . . . . Haulers Reinforced . | . . . . . . . . . . . . Active Scanning Responses . | . . . . . . . . . . . . Cargo Convoy Interrupts 1 | . . . . . . . . . . 1 . Stealth | -11 -10 -10 -10 -9 -8 -7 -7 -6 -6 -5 -5 --------- Run | Yrd Mat Min Exi Min Mat Fac DSF Fac Gar Fac Upp Distress Signals 2 | . 1 . . . 1 . . . . . . Communications Jammed 7 | . . . . . . . . . . 7 . Distress Signals 7 | . . . . . . . . . . 7 . Times Spotted 103 | . 18 . . 4 25 . 7 4 13 22 10 Peak Tracking Total 10 | . 3 . . 1 6 . 4 4 7 10 5 Tactical Retreats 7 | . . . . . 2 . 1 . 1 2 1 Traps | -11 -10 -10 -10 -9 -8 -7 -7 -6 -6 -5 -5 ------- Run | Yrd Mat Min Exi Min Mat Fac DSF Fac Gar Fac Upp Traps Triggered 2 | . 2 . . . . . . . . . . Indirectly . | . . . . . . . . . . . . Trap Hack Attempts . | . . . . . . . . . . . . Triggered . | . . . . . . . . . . . . Disarmed . | . . . . . . . . . . . . Reprogrammed . | . . . . . . . . . . . . Reused . | . . . . . . . . . . . . Traps Extracted . | . . . . . . . . . . . . Installed . | . . . . . . . . . . . . Triggered . | . . . . . . . . . . . . Machines | -11 -10 -10 -10 -9 -8 -7 -7 -6 -6 -5 -5 ---------- Run | Yrd Mat Min Exi Min Mat Fac DSF Fac Gar Fac Upp Machines Disabled . | . . . . . . . . . . . . Max in Single Turn . | . . . . . . . . . . . . Machines Repaired . | . . . . . . . . . . . . Machines Dismantled . | . . . . . . . . . . . . Machines Sabotaged . | . . . . . . . . . . . . Overloaded Fab Kills . | . . . . . . . . . . . . Hacking | -11 -10 -10 -10 -9 -8 -7 -7 -6 -6 -5 -5 --------- Run | Yrd Mat Min Exi Min Mat Fac DSF Fac Gar Fac Upp Machines Accessed 20 | . 9 . . . 5 1 . 2 1 2 . Terminals 16 | . 7 . . . 5 1 . 1 1 1 . Fabricators . | . . . . . . . . . . . . Repair Stations . | . . . . . . . . . . . . Recycling Units 2 | . 2 . . . . . . . . . . Scanalyzers 1 | . . . . . . . . . . 1 . Garrison Access 1 | . . . . . . . . 1 . . . Total Hacks 47 | . 25 . . . 13 2 . 2 1 4 . Successful 28 | . 16 . . . 6 1 . 1 1 3 . Failed 19 | . 9 . . . 7 1 . 1 . 1 . Catastrophic 1 | . 1 . . . . . . . . . . Database Lockouts . | . . . . . . . . . . . . Manual 33 | . 17 . 1 . 10 . . 1 . 4 . Terminals 43 | . 23 . . . 13 2 . 1 1 3 . Fabricators . | . . . . . . . . . . . . Repair Stations . | . . . . . . . . . . . . Recycling Units 2 | . 2 . . . . . . . . . . Scanalyzers 1 | . . . . . . . . . . 1 . Garrison Access 1 | . . . . . . . . 1 . . . Terminal Hacks 13 | . 8 . . . 2 1 . . 1 1 . Robot Analysis 1 | . . . . . 1 . . . . . . Prototype ID Bank 1 | . 1 . . . . . . . . . . Open DSF 1 | . . . . . . 1 . . . . . Level Access Points 2 | . 1 . . . . . . . . 1 . Branch Access Points 1 | . 1 . . . . . . . . . . Emergency Access Points 1 | . . . . . . . . . 1 . . Terminal Index 2 | . 1 . . . 1 . . . . . . Alert Level 1 | . 1 . . . . . . . . . . Locate Traps 2 | . 2 . . . . . . . . . . Zone Layout 1 | . 1 . . . . . . . . . . Fabricator Hacks . | . . . . . . . . . . . . Repair Station Hacks . | . . . . . . . . . . . . Recycling Unit Hacks 1 | . 1 . . . . . . . . . . Retrieve Components 1 | . 1 . . . . . . . . . . Scanalyzer . | . . . . . . . . . . . . Garrison Access Hacks 1 | . . . . . . . . 1 . . . Unlock Access 1 | . . . . . . . . 1 . . . Unauthorized Hacks 13 | . 7 . . . 4 . . . . 2 . Terminals 12 | . 7 . . . 4 . . . . 1 . Track 1 | . 1 . . . . . . . . . . Botnet 11 | . 6 . . . 4 . . . . 1 . Fabricators . | . . . . . . . . . . . . Repair Stations . | . . . . . . . . . . . . Recycling Units . | . . . . . . . . . . . . Scanalyzers 1 | . . . . . . . . . . 1 . Extract 1 | . . . . . . . . . . 1 . Garrison Access . | . . . . . . . . . . . . Data Cores Recovered 1 | . . . . . 1 . . . . . . Used . | . . . . . . . . . . . . Hacking Detections 14 | . 7 . . . 5 . . 1 1 . . Full Trace Events 1 | . 1 . . . . . . . . . . Feedback Events . | . . . . . . . . . . . . Feedback Blocked . | . . . . . . . . . . . . Robot Schematics Acquired . | . . . . . . . . . . . . Robots Built . | . . . . . . . . . . . . Authchips . | . . . . . . . . . . . . Time . | . . . . . . . . . . . . Total Robot Build Rating . | . . . . . . . . . . . . Part Schematics Acquired 1 | . . . . . . . . . . 1 . Parts Built . | . . . . . . . . . . . . Authchips . | . . . . . . . . . . . . Time . | . . . . . . . . . . . . Total Part Build Rating . | . . . . . . . . . . . . Parts Repaired . | . . . . . . . . . . . . Time . | . . . . . . . . . . . . Parts Recycled . | . . . . . . . . . . . . Recycled Matter . | . . . . . . . . . . . . Retrieved Matter . | . . . . . . . . . . . . Retrieved Components 10 | . 10 . . . . . . . . . . Parts Scanalyzed . | . . . . . . . . . . . . Part Schematics Acquired . | . . . . . . . . . . . . Parts Damaged . | . . . . . . . . . . . . Bothacking | -11 -10 -10 -10 -9 -8 -7 -7 -6 -6 -5 -5 ------------ Run | Yrd Mat Min Exi Min Mat Fac DSF Fac Gar Fac Upp Used RIF Installer . | . . . . . . . . . . . . Robots Hacked . | . . . . . . . . . . . . Non-combat . | . . . . . . . . . . . . Combat . | . . . . . . . . . . . . Robot Hacks Applied . | . . . . . . . . . . . . Relay Couplers Released . | . . . . . . . . . . . . Fabnet Peak Effective % . | . . . . . . . . . . . . Robots Rewired . | . . . . . . . . . . . . Allies Hacked . | . . . . . . . . . . . . Hacks Repelled . | . . . . . . . . . . . . Allies | -11 -10 -10 -10 -9 -8 -7 -7 -6 -6 -5 -5 -------- Run | Yrd Mat Min Exi Min Mat Fac DSF Fac Gar Fac Upp Total Allies 5 | . . 5 . . . . . . . . . Largest Group 5 | . . 5 5 3 3 . . . . . . Highest-Rated Group 83 | . . 83 83 40 40 . . . . . . Highest-Rated Ally 31 | . . 31 31 16 16 . . . . . . Total Orders . | . . . . . . . . . . . . Ally Attacks 45 | . . . . 12 33 . . . . . . Total Damage 454 | . . . . 139 315 . . . . . . Kills 14 | . . . . 5 9 . . . . . . Allies Corrupted . | . . . . . . . . . . . . Allies Melted . | . . . . . . . . . . . . Intel | -11 -10 -10 -10 -9 -8 -7 -7 -6 -6 -5 -5 ------- Run | Yrd Mat Min Exi Min Mat Fac DSF Fac Gar Fac Upp Active Infowar (turns) 7083 | . 1673 1503 1923 607 733 4 231 304 . 105 . Optics 1463 | . 804 . . . 120 4 231 304 . . . Sensors 5515 | . 869 1503 1923 607 613 . . . . . . Jamming 105 | . . . . . . . . . . 105 . Robot Analysis Total 1 | . . . . . 1 . . . . . . Derelict Logs Recovered 3 | . . 1 . . . . . . . . 2 Drone Launches . | . . . . . . . . . . . . Drone Recoveries . | . . . . . . . . . . . . Exploration | -11 -10 -10 -10 -9 -8 -7 -7 -6 -6 -5 -5 ------------- Run | Yrd Mat Min Exi Min Mat Fac DSF Fac Gar Fac Upp Turns Passed 9411 | 66 1991 1503 1923 607 765 4 231 353 320 1075 573 Spaces Moved 3869 | 46 682 547 740 185 354 3 110 72 201 286 643 Core 315 | 23 6 . . . . . . . . 3 283 Treads . | . . . . . . . . . . . . Legs 3085 | 23 676 547 740 185 354 3 110 72 201 174 . Wheels . | . . . . . . . . . . . . Hover . | . . . . . . . . . . . . Flight 469 | . . . . . . . . . . 109 360 Fastest Speed 31 | 50 120 260 260 260 120 120 120 120 120 31 50 Average Speed 191 | 102 262 260 260 260 120 120 125 120 120 100 88 Slowest Speed 750 | 120 750 260 260 260 190 120 190 120 120 350 280 Overloaded Moves . | . . . . . . . . . . . . Propulsion Burnouts . | . . . . . . . . . . . . Robots Hopped 1 | . . . . . . . . . . 1 . Potential Cave-ins . | . . . . . . . . . . . . Cave-ins Triggered . | . . . . . . . . . . . . Exploration Rate (%) 48 | 4 83 64 91 51 35 . 92 3 35 11 61 Regions Visited 11 Branch Regions 4 Pre-discovered Areas 1 | . . 1 . . . . . . . . . Known Exits Taken 3 | . 1 . . . . 1 . 1 . . . Unknown Exits Taken 6 | 1 . 1 1 1 1 . . . . 1 . Scrap Searched 3 | . . 1 . . . . . . . . 2 Spaces Dug . | . . . . . . . . . . . . Terrain Destroyed . | . . . . . . . . . . . . Melee . | . . . . . . . . . . . . Projectile . | . . . . . . . . . . . . AOE . | . . . . . . . . . . . . Terrain Rammed . | . . . . . . . . . . . . Walls Destroyed . | . . . . . . . . . . . . Machines Disabled . | . . . . . . . . . . . . Actions | -11 -10 -10 -10 -9 -8 -7 -7 -6 -6 -5 -5 --------- Run | Yrd Mat Min Exi Min Mat Fac DSF Fac Gar Fac Upp Total 5615 | 65 811 627 740 311 618 3 168 328 257 1038 649 Wait 1421 | 6 58 80 . 125 176 . 6 245 23 702 . Move 3857 | 45 681 546 739 184 353 2 109 72 200 283 643 Hop 1 | . . . . . . . . . . 1 . Pick Up 92 | 8 21 . 1 1 20 . 21 . 11 8 1 Fast Attach 2 | . . . . . . . . . . 2 . Attach 58 | 6 6 . . . 11 1 5 4 6 19 . Detach . | . . . . . . . . . . . . Swap 13 | . 2 . . . 4 . 2 . 5 . . Drop 17 | . 1 . . . 7 . 6 2 . 1 . Fire 141 | . 42 . . 1 46 . 19 5 12 16 . Melee . | . . . . . . . . . . . . Ram 10 | . . . . . . . . . . 5 5 Kick 3 | . . 1 . . 1 . . . . 1 . Crush . | . . . . . . . . . . . . Escape Stasis . | . . . . . . . . . . . . Rewire . | . . . . . . . . . . . . Trap . | . . . . . . . . . . . . Miscellaneous . | . . . . . . . . . . . . Route ------- -11/Scrapyard -10/Materials (discovered 5 exits: *Mat x3 / *Min / [*Sub]) -10/Mines (discovered 2 exits: *Exi / [*Sub]) -10/Exiles (discovered 2 exits: [*Min x2]) -9/Mines -8/Materials -7/Factory -7/DSF -6/Factory -6/Garrison -5/Factory (discovered 5 exits: Fac x4 / [*Upp]) -5/Upper Caves History --------- Turn | Location | Event 12 | -11/Scrapyard | Discovered new exit (range 15) 67 | -11/Scrapyard | Entered Materials 80 | -10/Materials | Identified exit to Mines 307 | -10/Materials | Build established: Mutant 446 | -10/Materials | Discovered new exit (range 11) 469 | -10/Materials | Discovered new exit (range 15) 681 | -10/Materials | Identified exit to Materials 2058 | -10/Materials | Entered Mines 2150 | -10/Mines | Met a Derelict bent on vengeance 2576 | -10/Mines | Learned Materials trap positions 2607 | -10/Mines | Discovered new exit (range 3) 2691 | -10/Mines | Learned location of Storage (-7) 3327 | -10/Mines | Assisted by bots powering up and referring to "LRC-V3" 3480 | -10/Mines | Deemed a non-threat by the Exiles lab entrance 3482 | -10/Mines | Discovered new exit (range 5) 3561 | -10/Mines | Entered Exiles 3561 | -10/Exiles | Accompanied by 5 allies 3591 | -10/Exiles | Led the pair of lost Derelicts to a safe place 3600 | -10/Exiles | Discovered new exit (range 15) 3632 | -10/Exiles | Met 8R-AWN 3668 | -10/Exiles | Met EX-HEX 3772 | -10/Exiles | Met EX-DEC 3858 | -10/Exiles | Discovered new exit (range 14) 4063 | -10/Exiles | Met EX-BIN 4107 | -10/Exiles | Aligned with FarCom system 4110 | -10/Exiles | Given EX-Vault access code 4553 | -10/Exiles | Visited The Gauntlet 5225 | -10/Exiles | Opened EX-Vault 5238 | -10/Exiles | Found Prototype Storage 5297 | -10/Exiles | Warned to stay clear of 0b10 Research branches 5484 | -10/Exiles | Left Exiles lab with Lightpack 2.0 5484 | -10/Exiles | Entered Mines 5484 | -9/Mines | Accompanied by 3 allies 5784 | -9/Mines | Build established: Skirmisher 6063 | -9/Mines | Discovered new exit (range 8) 6091 | -9/Mines | Entered Materials 6091 | -8/Materials | Accompanied by 3 allies 6091 | -8/Materials | Evolved 4 slots: Propulsion x1, Utility x3 6091 | -8/Materials | Identified Lightpack 2.0 6092 | -8/Materials | Loaded intel: 20 trap records 6404 | -8/Materials | Build established: Hauler-Skirmisher 6607 | -8/Materials | Lost 3 allies 6688 | -8/Materials | Garrison activated, responded to threat 6720 | -8/Materials | Discovered new exit (range 10) 6746 | -8/Materials | Lost 6 parts (1p3n1u1w) 6856 | -8/Materials | Entered Factory 6856 | -7/Factory | Evolved 2 slots: Power x1, Weapon x1 6860 | -7/Factory | Identified exit to DSF 6860 | -7/Factory | Entered DSF 6921 | -7/DSF | Additional patrols routed to DSF 7019 | -7/DSF | Build established: Hauler-Mutant 7055 | -7/DSF | Discovered new exit (range 17) 7091 | -7/DSF | Entered Factory 7091 | -6/Factory | Evolved 2 slots: Propulsion x1, Utility x1 7425 | -6/Factory | Build established: Hauler-Skirmisher 7444 | -6/Factory | Identified exit to Garrison 7444 | -6/Factory | Entered Garrison 7634 | -6/Garrison | Triggered checkpoint 7636 | -6/Garrison | Triggered checkpoint 7691 | -6/Garrison | Lost 7 parts (1p2n1u3w) 7749 | -6/Garrison | Discovered new exit (range 10) 7764 | -6/Garrison | Entered Factory 7764 | -5/Factory | Evolved 2 slots: Propulsion x1, Weapon x1 8073 | -5/Factory | Build established: Scavenger-Skirmisher 8633 | -5/Factory | Garrison activated, responded to threat 8649 | -5/Factory | Cargo convoy interrupted 8694 | -5/Factory | System corruption reached 10% 8742 | -5/Factory | Lost 16 parts (5p5n2u4w) 8784 | -5/Factory | Identified exit to Factory 8788 | -5/Factory | Discovered new exit (range 9) 8790 | -5/Factory | Lost 6 parts (1p1n1u3w) 8839 | -5/Factory | Entered Upper Caves 8869 | -5/Upper Caves | Lost 4 parts (1n2u1w) 9088 | -5/Upper Caves | Build established: Mutant 9271 | -5/Upper Caves | Core integrity fell below 50% 9295 | -5/Upper Caves | Lost 4 parts (2p2n) 9378 | -5/Upper Caves | Learned Factory garrison access intel 9380 | -5/Upper Caves | Learned location of 1 exit from Proximity Caves 9395 | -5/Upper Caves | Core integrity fell below 20% 9412 | -5/Upper Caves | Destroyed by S-27 Virus with Autogun Last Messages --------------- System corrupted: IFF burst signal emitted. System corrupted: Energy discharge (-23). Slammed into S-27 Virus. Searching scrap... Found Power Amplifier. Found Recalibrator. Found Dynamic Insulation System. Found 63 Matter. Acquired derelict log, extracted data. Data stored: Factory garrison access intel. Acquired derelict log, extracted data. Data stored: Proximity Caves exits (x1). S-27 Virus destroyed. NOCZ XMT6,RH